[Event "*** SCC Grand Prix: Titled Tuesday Blitz"]
[Site "Chess.com"]
[Date "2020.09.08"]
[Round "6"]
[White "olksuna"]
[Black "LuckSlayeer"]
[Result "1-0"]
[WhiteElo "2666"]
[BlackElo "2478"]
[TimeControl "180+1"]
[EndTime "11:07:44 PDT"]
[Termination "olksuna won on time"]

1. Nf3 {[%clk 0:03:00.9]} 1... Nf6 {[%clk 0:02:59.6]} 2. g3 {[%clk 0:03:01]}
2... b6 {[%clk 0:02:58.3]} 3. Bg2 {[%clk 0:03:00.3]} 3... Bb7 {[%clk 0:02:59]}
4. O-O {[%clk 0:03:00.7]} 4... e6 {[%clk 0:02:59.3]} 5. c4 {[%clk 0:02:59.5]}
5... c5 {[%clk 0:02:54.1]} 6. Nc3 {[%clk 0:02:56.6]} 6... Be7 {[%clk 0:02:54]}
7. d4 {[%clk 0:02:56.4]} 7... cxd4 {[%clk 0:02:53.1]} 8. Qxd4 {[%clk 0:02:57.3]}
8... O-O {[%clk 0:02:43.8]} 9. Rd1 {[%clk 0:02:55.2]} 9... a6 {[%clk 0:02:31.4]}
10. Bf4 {[%clk 0:02:52.7]} 10... Nc6 {[%clk 0:02:07.3]} 11. Qd2 {[%clk
0:02:49.7]} 11... Rc8 {[%clk 0:02:00.4]} 12. Rac1 {[%clk 0:02:48.7]} 12... b5
{[%clk 0:01:56.6]} 13. cxb5 {[%clk 0:02:44.5]} 13... axb5 {[%clk 0:01:57.5]} 14.
Nxb5 {[%clk 0:02:42.9]} 14... d5 {[%clk 0:01:57.7]} 15. Ne5 {[%clk 0:02:37.9]}
15... Qb6 {[%clk 0:01:45]} 16. Nxc6 {[%clk 0:02:13]} 16... Bxc6 {[%clk 0:01:45]}
17. Nd4 {[%clk 0:02:09.5]} 17... Ba4 {[%clk 0:01:34]} 18. b3 {[%clk 0:01:58.9]}
18... Bd7 {[%clk 0:01:33.4]} 19. Bg5 {[%clk 0:01:40.8]} 19... e5 {[%clk
0:01:14.1]} 20. Nc2 {[%clk 0:01:06.3]} 20... d4 {[%clk 0:00:54.4]} 21. Bxf6
{[%clk 0:01:01.5]} 21... Bxf6 {[%clk 0:00:48.8]} 22. Nb4 {[%clk 0:00:58.1]}
22... Qa5 {[%clk 0:00:33.4]} 23. Rxc8 {[%clk 0:00:38.1]} 23... Rxc8 {[%clk
0:00:34.3]} 24. h4 {[%clk 0:00:38.2]} 24... Bd8 {[%clk 0:00:12.2]} 25. Nd5
{[%clk 0:00:34]} 25... Qxd2 {[%clk 0:00:12.1]} 26. Rxd2 {[%clk 0:00:34.9]} 26...
Rc1+ {[%clk 0:00:12.6]} 27. Kh2 {[%clk 0:00:34.6]} 27... f5 {[%clk 0:00:10.5]}
28. e3 {[%clk 0:00:28.9]} 28... dxe3 {[%clk 0:00:06.7]} 29. Nxe3 {[%clk
0:00:28.2]} 29... Rc7 {[%clk 0:00:05.2]} 30. Bc6 {[%clk 0:00:25.9]} 30... Bxc6
{[%clk 0:00:04.5]} 31. Rxd8+ {[%clk 0:00:25.8]} 31... Kf7 {[%clk 0:00:05.1]} 32.
Nxf5 {[%clk 0:00:26.3]} 32... g6 {[%clk 0:00:02.5]} 33. Ne3 {[%clk 0:00:23.9]}
33... Be4 {[%clk 0:00:02.7]} 34. g4 {[%clk 0:00:19.2]} 34... Rc1 {[%clk
0:00:02]} 35. Rd1 {[%clk 0:00:19.2]} 35... Rc3 {[%clk 0:00:01.4]} 36. Rd2 {[%clk
0:00:17]} 36... Bf3 {[%clk 0:00:01.7]} 37. Kg3 {[%clk 0:00:16.1]} 37... e4
{[%clk 0:00:02.3]} 38. b4 {[%clk 0:00:16]} 38... Rc1 {[%clk 0:00:02.4]} 39. Kf4
{[%clk 0:00:13.5]} 1-0

[Event "*** SCC Grand Prix: Titled Tuesday Blitz"]
[Site "Chess.com"]
[Date "2020.09.08"]
[Round "6"]
[White "Jumbo"]
[Black "TheMagnet"]
[Result "0-1"]
[WhiteElo "2749"]
[BlackElo "2590"]
[TimeControl "180+1"]
[EndTime "11:07:46 PDT"]
[Termination "TheMagnet won on time"]

1. d4 {[%clk 0:03:00.9]} 1... Nf6 {[%clk 0:02:58.1]} 2. c4 {[%clk 0:02:53.6]}
2... g6 {[%clk 0:02:58.4]} 3. g3 {[%clk 0:02:51.8]} 3... Bg7 {[%clk 0:02:58.3]}
4. Bg2 {[%clk 0:02:49.1]} 4... O-O {[%clk 0:02:58.8]} 5. Nf3 {[%clk 0:02:49.2]}
5... d6 {[%clk 0:02:59]} 6. O-O {[%clk 0:02:48]} 6... Nc6 {[%clk 0:02:59.7]} 7.
Nc3 {[%clk 0:02:47.5]} 7... a6 {[%clk 0:03:00.3]} 8. Bf4 {[%clk 0:02:45.2]} 8...
Rb8 {[%clk 0:02:57.3]} 9. Rc1 {[%clk 0:02:45.5]} 9... Bg4 {[%clk 0:02:37.9]} 10.
d5 {[%clk 0:02:39.1]} 10... Na5 {[%clk 0:02:32.7]} 11. b3 {[%clk 0:02:39.1]}
11... c5 {[%clk 0:02:29.3]} 12. dxc6 {[%clk 0:02:38.5]} 12... Nxc6 {[%clk
0:02:28.3]} 13. Qd2 {[%clk 0:02:38.9]} 13... Re8 {[%clk 0:02:21.7]} 14. Rfd1
{[%clk 0:02:38]} 14... Qa5 {[%clk 0:02:19.8]} 15. h3 {[%clk 0:02:34.6]} 15...
Bxf3 {[%clk 0:02:19]} 16. Bxf3 {[%clk 0:02:35.5]} 16... Rec8 {[%clk 0:02:10]}
17. Qe3 {[%clk 0:02:03.5]} 17... Kf8 {[%clk 0:01:52]} 18. g4 {[%clk 0:01:41.2]}
18... Nd7 {[%clk 0:01:24.8]} 19. Nd5 {[%clk 0:01:35.2]} 19... Nce5 {[%clk
0:01:19]} 20. a4 {[%clk 0:01:32.4]} 20... Re8 {[%clk 0:01:05.6]} 21. Bg2 {[%clk
0:01:31.7]} 21... b5 {[%clk 0:00:59.4]} 22. axb5 {[%clk 0:01:26.6]} 22... axb5
{[%clk 0:01:00.3]} 23. b4 {[%clk 0:01:26.3]} 23... Qa2 {[%clk 0:00:45.6]} 24.
cxb5 {[%clk 0:01:19.6]} 24... Nc4 {[%clk 0:00:37.7]} 25. Qe4 {[%clk 0:01:15.7]}
25... Nde5 {[%clk 0:00:34.5]} 26. Rc2 {[%clk 0:00:44.3]} 26... Qb3 {[%clk
0:00:32]} 27. Rdc1 {[%clk 0:00:44.6]} 27... e6 {[%clk 0:00:30.5]} 28. Nc7 {[%clk
0:00:39]} 28... d5 {[%clk 0:00:30.8]} 29. Rc3 {[%clk 0:00:02.5]} 29... Qxc3
{[%clk 0:00:25.3]} 30. Rxc3 {[%clk 0:00:02.4]} 30... dxe4 {[%clk 0:00:25.2]} 31.
Nxe8 {[%clk 0:00:01.9]} 31... Rxe8 {[%clk 0:00:19.1]} 32. Bxe4 {[%clk
0:00:01.9]} 32... Nd6 {[%clk 0:00:15.8]} 33. Rc6 {[%clk 0:00:02]} 33... Nxe4
{[%clk 0:00:15.6]} 34. Bxe5 {[%clk 0:00:02.3]} 34... Bxe5 {[%clk 0:00:16.5]} 35.
Rc4 {[%clk 0:00:02.5]} 35... Nd6 {[%clk 0:00:16.5]} 36. Rc5 {[%clk 0:00:03]}
36... Bf6 {[%clk 0:00:16.2]} 37. b6 {[%clk 0:00:03]} 37... Rb8 {[%clk
0:00:16.3]} 38. Rc6 {[%clk 0:00:03.5]} 38... Be7 {[%clk 0:00:15.8]} 39. e3
{[%clk 0:00:03.2]} 39... Ke8 {[%clk 0:00:15.6]} 0-1

[Event "*** SCC Grand Prix: Titled Tuesday Blitz"]
[Site "Chess.com"]
[Date "2020.09.08"]
[Round "6"]
[White "Kislov_Oleg"]
[Black "earling8018"]
[Result "1-0"]
[WhiteElo "2381"]
[BlackElo "2045"]
[TimeControl "180+1"]
[EndTime "11:07:46 PDT"]
[Termination "Kislov_Oleg won on time"]

1. e4 {[%clk 0:03:00.9]} 1... e5 {[%clk 0:02:58.4]} 2. Nf3 {[%clk 0:03:00.8]}
2... Nc6 {[%clk 0:02:58.3]} 3. d4 {[%clk 0:03:01.1]} 3... exd4 {[%clk
0:02:57.7]} 4. Nxd4 {[%clk 0:03:01.6]} 4... Nf6 {[%clk 0:02:57.5]} 5. Nc3 {[%clk
0:03:01.5]} 5... Bb4 {[%clk 0:02:57.1]} 6. Nxc6 {[%clk 0:03:01.1]} 6... bxc6
{[%clk 0:02:57.6]} 7. Bd3 {[%clk 0:03:01.5]} 7... d5 {[%clk 0:02:57.4]} 8. exd5
{[%clk 0:03:00.2]} 8... cxd5 {[%clk 0:02:57.9]} 9. O-O {[%clk 0:03:00.3]} 9...
O-O {[%clk 0:02:57.6]} 10. Bg5 {[%clk 0:02:57.9]} 10... c6 {[%clk 0:02:58]} 11.
Qf3 {[%clk 0:02:57.8]} 11... Bd6 {[%clk 0:02:51.5]} 12. Rfe1 {[%clk 0:02:50.2]}
12... Rb8 {[%clk 0:02:49.4]} 13. b3 {[%clk 0:02:23.3]} 13... Bg4 {[%clk
0:02:23.4]} 14. Bxf6 {[%clk 0:02:15.5]} 14... Qxf6 {[%clk 0:02:23]} 15. Qxg4
{[%clk 0:02:10.2]} 15... Qxc3 {[%clk 0:02:22.4]} 16. Rad1 {[%clk 0:02:01]} 16...
g6 {[%clk 0:01:43.9]} 17. h4 {[%clk 0:02:00.1]} 17... Rbe8 {[%clk 0:01:39.3]}
18. Kf1 {[%clk 0:01:50.7]} 18... Bb4 {[%clk 0:01:17.4]} 19. Rxe8 {[%clk
0:01:42]} 19... Rxe8 {[%clk 0:01:17.3]} 20. g3 {[%clk 0:01:41.7]} 20... Re1+
{[%clk 0:01:11.7]} 21. Rxe1 {[%clk 0:01:39.9]} 21... Qxe1+ {[%clk 0:01:12]} 22.
Kg2 {[%clk 0:01:40.5]} 22... Bc5 {[%clk 0:01:06.8]} 23. Qf4 {[%clk 0:01:31.9]}
23... a5 {[%clk 0:00:56.7]} 24. a4 {[%clk 0:01:26.3]} 24... Qe6 {[%clk
0:00:47.2]} 25. h5 {[%clk 0:01:19.9]} 25... Bd6 {[%clk 0:00:46.3]} 26. Qd2
{[%clk 0:01:11.5]} 26... Bb4 {[%clk 0:00:44.1]} 27. c3 {[%clk 0:01:02.6]} 27...
Bd6 {[%clk 0:00:43.7]} 28. hxg6 {[%clk 0:00:54.2]} 28... hxg6 {[%clk 0:00:42.3]}
29. b4 {[%clk 0:00:54.7]} 29... d4 {[%clk 0:00:33.1]} 30. bxa5 {[%clk
0:00:46.1]} 30... dxc3 {[%clk 0:00:30.6]} 31. Qxc3 {[%clk 0:00:44.7]} 31... Qd5+
{[%clk 0:00:30.9]} 32. f3 {[%clk 0:00:42]} 32... Qg5 {[%clk 0:00:17.4]} 33. g4
{[%clk 0:00:33.8]} 33... Qf4 {[%clk 0:00:16.2]} 34. Be4 {[%clk 0:00:24.8]} 34...
Qg3+ {[%clk 0:00:12.5]} 35. Kf1 {[%clk 0:00:24.9]} 35... c5 {[%clk 0:00:05.8]}
36. a6 {[%clk 0:00:21.9]} 36... Be5 {[%clk 0:00:03.8]} 37. Qxc5 {[%clk
0:00:15.7]} 37... Qh3+ {[%clk 0:00:01.8]} 38. Ke2 {[%clk 0:00:14.9]} 1-0

[Event "*** SCC Grand Prix: Titled Tuesday Blitz"]
[Site "Chess.com"]
[Date "2020.09.08"]
[Round "6"]
[White "Meri-Arabidze"]
[Black "Snegokhod"]
[Result "1-0"]
[WhiteElo "2569"]
[BlackElo "2377"]
[TimeControl "180+1"]
[EndTime "11:07:47 PDT"]
[Termination "Meri-Arabidze won by checkmate"]

1. d4 {[%clk 0:03:00.9]} 1... Nf6 {[%clk 0:02:59.8]} 2. c4 {[%clk 0:03:01.2]}
2... g6 {[%clk 0:02:59.7]} 3. Nf3 {[%clk 0:03:01.3]} 3... Bg7 {[%clk 0:02:59.4]}
4. g3 {[%clk 0:03:01.9]} 4... O-O {[%clk 0:02:58.9]} 5. Bg2 {[%clk 0:03:02.6]}
5... d5 {[%clk 0:02:59.5]} 6. cxd5 {[%clk 0:03:02.6]} 6... Nxd5 {[%clk
0:02:59.4]} 7. O-O {[%clk 0:03:03.5]} 7... Nc6 {[%clk 0:02:59.5]} 8. Nc3 {[%clk
0:03:02]} 8... Nb6 {[%clk 0:02:59.4]} 9. d5 {[%clk 0:03:02.3]} 9... Na5 {[%clk
0:02:59]} 10. Qc2 {[%clk 0:03:03]} 10... c6 {[%clk 0:02:38.5]} 11. dxc6 {[%clk
0:03:03.9]} 11... Nxc6 {[%clk 0:02:38.2]} 12. Rd1 {[%clk 0:03:04.6]} 12... Qc7
{[%clk 0:02:31.2]} 13. Nb5 {[%clk 0:03:03.7]} 13... Qb8 {[%clk 0:02:31.5]} 14.
Bf4 {[%clk 0:03:04]} 14... e5 {[%clk 0:02:31.1]} 15. Be3 {[%clk 0:03:04]} 15...
Bf5 {[%clk 0:02:24.4]} 16. Qc5 {[%clk 0:03:03.7]} 16... Nd7 {[%clk 0:02:02.3]}
17. Qd6 {[%clk 0:02:55.5]} 17... a6 {[%clk 0:01:54.7]} 18. Nc7 {[%clk
0:02:42.7]} 18... Nd4 {[%clk 0:01:46.4]} 19. Nxd4 {[%clk 0:02:31.7]} 19... exd4
{[%clk 0:01:45.8]} 20. Bxd4 {[%clk 0:02:31.9]} 20... Bxd4 {[%clk 0:01:41.7]} 21.
Rxd4 {[%clk 0:02:30.5]} 21... Ra7 {[%clk 0:01:37.5]} 22. g4 {[%clk 0:02:26.5]}
22... b5 {[%clk 0:01:34.2]} 23. gxf5 {[%clk 0:01:51.2]} 23... Rxc7 {[%clk
0:01:18.8]} 24. fxg6 {[%clk 0:01:51.1]} 24... hxg6 {[%clk 0:01:18.4]} 25. Qxa6
{[%clk 0:01:50.8]} 25... Nc5 {[%clk 0:01:10.4]} 26. Qf6 {[%clk 0:01:47.8]} 26...
Ne6 {[%clk 0:01:05.8]} 27. Rh4 {[%clk 0:01:46.5]} 27... Ng7 {[%clk 0:01:06]} 28.
Rd1 {[%clk 0:01:41.5]} 28... Rc2 {[%clk 0:01:03.4]} 29. Bf3 {[%clk 0:01:33]}
29... Qc7 {[%clk 0:00:58.8]} 30. Qg5 {[%clk 0:01:27.6]} 30... Nf5 {[%clk
0:00:48.3]} 31. Rh3 {[%clk 0:01:27.6]} 31... Qe5 {[%clk 0:00:37.5]} 32. Rd5
{[%clk 0:01:20]} 32... Qg7 {[%clk 0:00:34.1]} 33. Rxb5 {[%clk 0:01:17.2]} 33...
Rxb2 {[%clk 0:00:31.8]} 34. Rxb2 {[%clk 0:01:13.8]} 34... Qxb2 {[%clk
0:00:31.9]} 35. Bd5 {[%clk 0:01:09]} 35... Qg7 {[%clk 0:00:26.2]} 36. Bb3 {[%clk
0:01:06]} 36... Nd4 {[%clk 0:00:25.5]} 37. e3 {[%clk 0:00:59.4]} 37... Nxb3
{[%clk 0:00:24.5]} 38. axb3 {[%clk 0:01:00.3]} 38... Rc8 {[%clk 0:00:23.7]} 39.
Qh4 {[%clk 0:00:50.2]} 39... Rb8 {[%clk 0:00:19.3]} 40. b4 {[%clk 0:00:49.6]}
40... Rb5 {[%clk 0:00:15.6]} 41. Qc4 {[%clk 0:00:42.9]} 41... Rb8 {[%clk
0:00:15.1]} 42. b5 {[%clk 0:00:38.3]} 42... Qe5 {[%clk 0:00:14.6]} 43. b6 {[%clk
0:00:33.2]} 43... Kg7 {[%clk 0:00:14.2]} 44. Qh4 {[%clk 0:00:25.5]} 44... Rxb6
{[%clk 0:00:09.3]} 45. Qh8# {[%clk 0:00:25]} 1-0

[Event "*** SCC Grand Prix: Titled Tuesday Blitz"]
[Site "Chess.com"]
[Date "2020.09.08"]
[Round "6"]
[White "kirillshevchenko"]
[Black "Rodalquilar"]
[Result "1-0"]
[WhiteElo "2855"]
[BlackElo "2657"]
[TimeControl "180+1"]
[EndTime "11:07:48 PDT"]
[Termination "kirillshevchenko won by checkmate"]

1. e4 {[%clk 0:03:00.9]} 1... d5 {[%clk 0:03:00.2]} 2. exd5 {[%clk 0:03:00.3]}
2... Qxd5 {[%clk 0:03:01.1]} 3. Nc3 {[%clk 0:03:00.5]} 3... Qa5 {[%clk
0:03:01.4]} 4. b4 {[%clk 0:02:55.6]} 4... Qxb4 {[%clk 0:03:01]} 5. Nb5 {[%clk
0:02:54.3]} 5... Na6 {[%clk 0:02:30.4]} 6. Nf3 {[%clk 0:02:51.2]} 6... c6 {[%clk
0:02:23]} 7. Nc3 {[%clk 0:02:47.7]} 7... Nf6 {[%clk 0:02:15.9]} 8. Rb1 {[%clk
0:02:45.1]} 8... Qd6 {[%clk 0:01:40.9]} 9. d4 {[%clk 0:02:38.5]} 9... g6 {[%clk
0:01:39.5]} 10. Bc4 {[%clk 0:01:52.7]} 10... Bg7 {[%clk 0:01:36.3]} 11. O-O
{[%clk 0:01:49.9]} 11... O-O {[%clk 0:01:36.2]} 12. Ne5 {[%clk 0:01:49.7]} 12...
Nd5 {[%clk 0:01:24.9]} 13. Ne4 {[%clk 0:01:46.4]} 13... Qd8 {[%clk 0:01:22.5]}
14. Ba3 {[%clk 0:01:41.8]} 14... Nac7 {[%clk 0:01:16.2]} 15. Qf3 {[%clk
0:01:36.1]} 15... Ne6 {[%clk 0:00:43.6]} 16. c3 {[%clk 0:01:28.5]} 16... Bxe5
{[%clk 0:00:43.7]} 17. dxe5 {[%clk 0:01:27.5]} 17... Qc7 {[%clk 0:00:44.3]} 18.
Qg3 {[%clk 0:01:13.8]} 18... b6 {[%clk 0:00:44.1]} 19. f4 {[%clk 0:01:07.5]}
19... Ng7 {[%clk 0:00:39.8]} 20. Rbe1 {[%clk 0:00:48.1]} 20... a5 {[%clk
0:00:36.4]} 21. Kh1 {[%clk 0:00:08.4]} 21... b5 {[%clk 0:00:33.8]} 22. Bb3
{[%clk 0:00:07.6]} 22... b4 {[%clk 0:00:32.7]} 23. cxb4 {[%clk 0:00:08.3]} 23...
axb4 {[%clk 0:00:32.9]} 24. Bb2 {[%clk 0:00:08]} 24... Ba6 {[%clk 0:00:24.3]}
25. Rf3 {[%clk 0:00:08.1]} 25... Nh5 {[%clk 0:00:24.1]} 26. Qf2 {[%clk
0:00:08.1]} 26... Bc8 {[%clk 0:00:14.7]} 27. e6 {[%clk 0:00:07.1]} 27... Bxe6
{[%clk 0:00:14.1]} 28. Ng5 {[%clk 0:00:07.6]} 28... Bg4 {[%clk 0:00:08.6]} 29.
Rd3 {[%clk 0:00:07.7]} 29... Nhxf4 {[%clk 0:00:07.3]} 30. Qh4 {[%clk 0:00:05.2]}
30... Bh5 {[%clk 0:00:06.5]} 31. Rf3 {[%clk 0:00:03]} 31... e6 {[%clk
0:00:03.4]} 32. Ne4 {[%clk 0:00:02.4]} 32... f5 {[%clk 0:00:03.4]} 33. Bxd5
{[%clk 0:00:02.8]} 33... exd5 {[%clk 0:00:02.6]} 34. Nf6+ {[%clk 0:00:02.8]}
34... Rxf6 {[%clk 0:00:02.6]} 35. Qxf6 {[%clk 0:00:03.7]} 35... Bxf3 {[%clk
0:00:03]} 36. Qh8+ {[%clk 0:00:03.3]} 36... Kf7 {[%clk 0:00:03.9]} 37. Qg7#
{[%clk 0:00:03.9]} 1-0

[Event "*** SCC Grand Prix: Titled Tuesday Blitz"]
[Site "Chess.com"]
[Date "2020.09.08"]
[Round "6"]
[White "ClydeHillKid"]
[Black "Anna_ChessMate"]
[Result "0-1"]
[WhiteElo "2344"]
[BlackElo "2515"]
[TimeControl "180+1"]
[EndTime "11:07:49 PDT"]
[Termination "Anna_ChessMate won by resignation"]

1. e4 {[%clk 0:03:00.9]} 1... c6 {[%clk 0:02:59]} 2. d3 {[%clk 0:03:00.6]} 2...
d5 {[%clk 0:02:59.9]} 3. Nd2 {[%clk 0:03:00.4]} 3... g6 {[%clk 0:02:55.4]} 4.
Ngf3 {[%clk 0:02:59.9]} 4... Bg7 {[%clk 0:02:55.9]} 5. g3 {[%clk 0:03:00.3]}
5... e5 {[%clk 0:02:55.7]} 6. Bg2 {[%clk 0:03:00]} 6... Ne7 {[%clk 0:02:55.9]}
7. O-O {[%clk 0:03:00.4]} 7... O-O {[%clk 0:02:56.4]} 8. Re1 {[%clk 0:03:00.5]}
8... h6 {[%clk 0:02:56.9]} 9. exd5 {[%clk 0:02:58.9]} 9... Nxd5 {[%clk
0:02:57.5]} 10. Nxe5 {[%clk 0:02:58.9]} 10... Re8 {[%clk 0:02:58.2]} 11. Nef3
{[%clk 0:02:55.3]} 11... Be6 {[%clk 0:02:58.7]} 12. Ne4 {[%clk 0:02:54]} 12...
Na6 {[%clk 0:02:52.1]} 13. c3 {[%clk 0:02:51.3]} 13... Qd7 {[%clk 0:02:47.3]}
14. d4 {[%clk 0:02:49.4]} 14... Rad8 {[%clk 0:02:43.8]} 15. a3 {[%clk 0:02:39]}
15... b6 {[%clk 0:02:39.1]} 16. Bd2 {[%clk 0:02:31.6]} 16... Bf5 {[%clk
0:02:36.7]} 17. Nh4 {[%clk 0:02:25.1]} 17... Bg4 {[%clk 0:02:36]} 18. Bf3 {[%clk
0:02:22]} 18... Bxf3 {[%clk 0:02:23.8]} 19. Qxf3 {[%clk 0:02:21.3]} 19... f5
{[%clk 0:02:20.6]} 20. Nxg6 {[%clk 0:02:15.8]} 20... fxe4 {[%clk 0:02:20.6]} 21.
Rxe4 {[%clk 0:02:15.7]} 21... Rxe4 {[%clk 0:02:19.6]} 22. Qxe4 {[%clk
0:02:16.6]} 22... Re8 {[%clk 0:02:20]} 23. Qf3 {[%clk 0:02:01.7]} 23... Nac7
{[%clk 0:02:16.8]} 24. h4 {[%clk 0:01:58.4]} 24... Qf7 {[%clk 0:02:14.6]} 25.
Qg4 {[%clk 0:01:40.6]} 25... Nf6 {[%clk 0:01:57.9]} 26. Qf5 {[%clk 0:01:37]}
26... Ne4 {[%clk 0:01:58.3]} 27. Qxf7+ {[%clk 0:01:27.3]} 27... Kxf7 {[%clk
0:01:59.2]} 28. Bf4 {[%clk 0:01:27.7]} 28... Nd5 {[%clk 0:01:39.5]} 29. h5
{[%clk 0:01:24.1]} 29... c5 {[%clk 0:01:29]} 30. dxc5 {[%clk 0:01:22.7]} 30...
Nxc5 {[%clk 0:01:29.9]} 31. Rd1 {[%clk 0:01:19.2]} 31... Nf6 {[%clk 0:01:29.1]}
32. Ne5+ {[%clk 0:01:04.4]} 32... Kg8 {[%clk 0:01:19.5]} 33. g4 {[%clk
0:00:49.5]} 33... Ne6 {[%clk 0:01:19.7]} 34. Be3 {[%clk 0:00:44.6]} 34... Ng5
{[%clk 0:01:13.4]} 35. f4 {[%clk 0:00:36.5]} 35... Nge4 {[%clk 0:01:06.3]} 36.
Kg2 {[%clk 0:00:26.6]} 36... Bf8 {[%clk 0:00:49.2]} 37. Kf3 {[%clk 0:00:25.5]}
37... Nc5 {[%clk 0:00:40]} 38. Rd4 {[%clk 0:00:12.9]} 38... Ne6 {[%clk
0:00:38.5]} 39. Rd3 {[%clk 0:00:10.4]} 39... Bc5 {[%clk 0:00:36.3]} 40. b4
{[%clk 0:00:09.2]} 40... Bxe3 {[%clk 0:00:35.9]} 41. Rxe3 {[%clk 0:00:09]} 41...
Nxf4 {[%clk 0:00:32.9]} 42. Kxf4 {[%clk 0:00:08.7]} 42... Nd5+ {[%clk
0:00:32.9]} 43. Ke4 {[%clk 0:00:03]} 43... Nxe3 {[%clk 0:00:33.8]} 44. Kxe3
{[%clk 0:00:02.5]} 44... Rxe5+ {[%clk 0:00:33.6]} 45. Kf4 {[%clk 0:00:03]} 45...
Re1 {[%clk 0:00:33.3]} 46. Kf5 {[%clk 0:00:02.8]} 46... Kf7 {[%clk 0:00:33.2]}
47. g5 {[%clk 0:00:02.9]} 47... Rf1+ {[%clk 0:00:32.7]} 48. Kg4 {[%clk
0:00:02.9]} 48... Rg1+ {[%clk 0:00:32.9]} 49. Kf5 {[%clk 0:00:03.3]} 49... Rxg5+
{[%clk 0:00:33.2]} 0-1

[Event "*** SCC Grand Prix: Titled Tuesday Blitz"]
[Site "Chess.com"]
[Date "2020.09.08"]
[Round "6"]
[White "Duong57"]
[Black "Grineva_Marianna"]
[Result "1-0"]
[WhiteElo "2301"]
[BlackElo "2208"]
[TimeControl "180+1"]
[EndTime "11:07:49 PDT"]
[Termination "Duong57 won on time"]

1. d4 {[%clk 0:03:00.9]} 1... f5 {[%clk 0:02:56.7]} 2. c4 {[%clk 0:03:00.9]}
2... d6 {[%clk 0:02:56.8]} 3. Nc3 {[%clk 0:03:01.2]} 3... Nf6 {[%clk 0:02:57.3]}
4. Nf3 {[%clk 0:02:57.9]} 4... g6 {[%clk 0:02:56.5]} 5. g3 {[%clk 0:02:58.1]}
5... Bg7 {[%clk 0:02:56.9]} 6. Bg2 {[%clk 0:02:58.6]} 6... O-O {[%clk 0:02:57]}
7. O-O {[%clk 0:02:58.9]} 7... Qe8 {[%clk 0:02:56.1]} 8. d5 {[%clk 0:02:58.5]}
8... c6 {[%clk 0:02:51.5]} 9. Re1 {[%clk 0:02:54.8]} 9... e5 {[%clk 0:02:29.3]}
10. dxc6 {[%clk 0:02:22.1]} 10... Nxc6 {[%clk 0:02:15.7]} 11. Qxd6 {[%clk
0:02:21.2]} 11... e4 {[%clk 0:02:16]} 12. Nd4 {[%clk 0:01:49.1]} 12... Ne5
{[%clk 0:02:03.7]} 13. Bf4 {[%clk 0:01:31.5]} 13... Nxc4 {[%clk 0:01:59.4]} 14.
Qb4 {[%clk 0:01:31.3]} 14... Nb6 {[%clk 0:01:48.6]} 15. Red1 {[%clk 0:01:22.2]}
15... Bd7 {[%clk 0:01:46.2]} 16. e3 {[%clk 0:01:09.6]} 16... Rc8 {[%clk
0:01:33.9]} 17. Bf1 {[%clk 0:01:09]} 17... Kh8 {[%clk 0:01:22.8]} 18. Ndb5
{[%clk 0:00:59.1]} 18... Bxb5 {[%clk 0:01:09.3]} 19. Bxb5 {[%clk 0:00:58.3]}
19... Qf7 {[%clk 0:01:01.1]} 20. Qa5 {[%clk 0:00:53.5]} 20... Nbd5 {[%clk
0:00:44.1]} 21. Be5 {[%clk 0:00:49.4]} 21... a6 {[%clk 0:00:37.1]} 22. Bf1
{[%clk 0:00:39.4]} 22... Nxc3 {[%clk 0:00:23.9]} 23. Bxc3 {[%clk 0:00:37.7]}
23... Ng4 {[%clk 0:00:16.7]} 24. Bb4 {[%clk 0:00:20.2]} 24... Rfe8 {[%clk
0:00:14.9]} 25. h3 {[%clk 0:00:18.3]} 25... Ne5 {[%clk 0:00:14.8]} 26. Bc3
{[%clk 0:00:16.3]} 26... Nf3+ {[%clk 0:00:13.5]} 27. Kg2 {[%clk 0:00:16.7]}
27... Rxc3 {[%clk 0:00:10.7]} 28. bxc3 {[%clk 0:00:17.6]} 28... Qe6 {[%clk
0:00:09.5]} 29. Rd8 {[%clk 0:00:10.8]} 29... Bf6 {[%clk 0:00:08]} 30. Rxe8+
{[%clk 0:00:10.1]} 30... Qxe8 {[%clk 0:00:08.9]} 31. Rb1 {[%clk 0:00:10.5]}
31... b5 {[%clk 0:00:06.6]} 32. Qc7 {[%clk 0:00:09.5]} 32... Nd2 {[%clk
0:00:06.2]} 33. Rd1 {[%clk 0:00:09.1]} 33... Nxf1 {[%clk 0:00:04.3]} 34. Kxf1
{[%clk 0:00:09.2]} 34... Be5 {[%clk 0:00:03.9]} 35. Qc5 {[%clk 0:00:08.2]} 35...
Bf6 {[%clk 0:00:02.7]} 36. Rd6 {[%clk 0:00:07.7]} 36... Kg7 {[%clk 0:00:02.3]}
37. Qd5 {[%clk 0:00:07.3]} 1-0